[Event "Titled Tuesday Blitz July 11 Early 2023"]
[White "Soham Kamotra"]
[Black "Oparin, Grigoriy"]
[WhiteFideId "46647490"]
[BlackFideId "24125890"]
[WhiteElo "2580"]
[BlackElo "2949"]
[Result "0-1"]
[Round "4"]
[TimeControl "180+2"]
[Date "2023.07.11"]
[WhiteClock "0:00:02"]
[BlackClock "0:00:04"]
[Board "36"]

1. Nf3 {[%clk 0:03:00]}  c5 {[%clk 0:02:54]} 2. b3 {[%clk 0:03:00]}  Nc6 {[%clk 0:02:53]} 3. Bb2 {[%clk 0:03:01]}  d6 {[%clk 0:02:52]} 4. d4 {[%clk 0:03:00]}  cxd4 {[%clk 0:02:51]} 5. Nxd4 {[%clk 0:03:01]}  Nf6 {[%clk 0:02:51]} 6. c4 {[%clk 0:03:00]}  g6 {[%clk 0:02:49]} 7. e3 {[%clk 0:02:55]}  Bg7 {[%clk 0:02:49]} 8. Be2 {[%clk 0:02:55]}  O-O {[%clk 0:02:50]} 9. O-O {[%clk 0:02:55]}  Bd7 {[%clk 0:02:49]} 10. Nc3 {[%clk 0:02:52]}  a6 {[%clk 0:02:50]} 11. Rc1 {[%clk 0:02:49]}  Rc8 {[%clk 0:02:50]} 12. Qd2 {[%clk 0:02:47]}  Qa5 {[%clk 0:02:27]} 13. Rfd1 {[%clk 0:02:46]}  Rfe8 {[%clk 0:02:27]} 14. h3 {[%clk 0:02:43]}  Qg5 {[%clk 0:02:13]} 15. Nf3 {[%clk 0:02:30]}  Qc5 {[%clk 0:02:11]} 16. Bd3 {[%clk 0:02:13]}  Qa5 {[%clk 0:02:05]} 17. a3 {[%clk 0:02:07]}  Qb6 {[%clk 0:01:51]} 18. b4 {[%clk 0:01:59]}  Red8 {[%clk 0:01:51]} 19. Nd5 {[%clk 0:01:41]}  Nxd5 {[%clk 0:01:33]} 20. cxd5 {[%clk 0:01:42]}  Ne5 {[%clk 0:01:31]} 21. Nxe5 {[%clk 0:01:35]}  Bxe5 {[%clk 0:01:31]} 22. Bxe5 {[%clk 0:01:34]}  dxe5 {[%clk 0:01:32]} 23. Bf1 {[%clk 0:01:20]}  Qd6 {[%clk 0:01:28]} 24. e4 {[%clk 0:01:10]}  Kg7 {[%clk 0:01:25]} 25. Qe3 {[%clk 0:01:10]}  Ba4 {[%clk 0:01:12]} 26. Re1 {[%clk 0:01:06]}  Bd7 {[%clk 0:00:34]} 27. Rc5 {[%clk 0:01:05]}  Rxc5 {[%clk 0:00:18]} 28. bxc5 {[%clk 0:01:04]}  Qc7 {[%clk 0:00:18]} 29. Qc3 {[%clk 0:00:55]}  f6 {[%clk 0:00:18]} 30. Qb4 {[%clk 0:00:50]}  Bc8 {[%clk 0:00:15]} 31. f3 {[%clk 0:00:47]}  g5 {[%clk 0:00:13]} 32. a4 {[%clk 0:00:42]}  a5 {[%clk 0:00:13]} 33. Qc3 {[%clk 0:00:27]}  Bd7 {[%clk 0:00:12]} 34. Bb5 {[%clk 0:00:28]}  Rc8 {[%clk 0:00:12]} 35. Rc1 {[%clk 0:00:28]}  Be8 {[%clk 0:00:11]} 36. Kf2 {[%clk 0:00:25]}  Bf7 {[%clk 0:00:10]} 37. Qe3 {[%clk 0:00:23]}  h6 {[%clk 0:00:10]} 38. Ke1 {[%clk 0:00:22]}  Rd8 {[%clk 0:00:09]} 39. Rc3 {[%clk 0:00:20]}  Qb8 {[%clk 0:00:09]} 40. Qd2 {[%clk 0:00:20]}  Qc7 {[%clk 0:00:09]} 41. Rc2 {[%clk 0:00:19]}  Rh8 {[%clk 0:00:09]} 42. Kf2 {[%clk 0:00:18]}  h5 {[%clk 0:00:10]} 43. Rc1 {[%clk 0:00:16]}  g4 {[%clk 0:00:10]} 44. hxg4 {[%clk 0:00:16]}  hxg4 {[%clk 0:00:11]} 45. fxg4 {[%clk 0:00:14]}  Bg6 {[%clk 0:00:10]} 46. Qe2 {[%clk 0:00:12]}  Qc8 {[%clk 0:00:09]} 47. Kg3 {[%clk 0:00:12]}  Qg8 {[%clk 0:00:09]} 48. Rc3 {[%clk 0:00:12]}  Qh7 {[%clk 0:00:09]} 49. Kf2 {[%clk 0:00:11]}  Qh2 {[%clk 0:00:08]} 50. d6 {[%clk 0:00:11]}  exd6 {[%clk 0:00:07]} 51. cxd6 {[%clk 0:00:11]}  Qf4+ {[%clk 0:00:07]} 52. Rf3 {[%clk 0:00:11]}  Qc1 {[%clk 0:00:07]} 53. d7 {[%clk 0:00:08]}  Qc5+ {[%clk 0:00:05]} 54. Qe3 {[%clk 0:00:08]}  Qc2+ {[%clk 0:00:05]} 55. Qe2 {[%clk 0:00:08]}  Qc5+ {[%clk 0:00:06]} 56. Qe3 {[%clk 0:00:09]}  Qe7 {[%clk 0:00:06]} 57. Qc3 {[%clk 0:00:08]}  Bxe4 {[%clk 0:00:06]} 58. Re3 {[%clk 0:00:09]}  Bg6 {[%clk 0:00:04]} 59. Qc8 {[%clk 0:00:09]}  Rd8 {[%clk 0:00:04]} 60. Rc3 {[%clk 0:00:09]}  Kf7 {[%clk 0:00:03]} 61. Qc7 {[%clk 0:00:09]}  Be4 {[%clk 0:00:03]} 62. Bc4+ {[%clk 0:00:09]}  Kg6 {[%clk 0:00:03]} 63. Bb5 {[%clk 0:00:09]}  Bc6 {[%clk 0:00:03]} 64. Bd3+ {[%clk 0:00:06]}  e4 {[%clk 0:00:03]} 65. Rxc6 {[%clk 0:00:05]}  bxc6 {[%clk 0:00:03]} 66. Be2 {[%clk 0:00:02]}  Rxd7 {[%clk 0:00:04]} 67. Qxc6 {[%clk 0:00:03]}  Rd4 {[%clk 0:00:03]} 68. Qb5 {[%clk 0:00:03]}  Qe5 {[%clk 0:00:04]} 69. Qe8+ {[%clk 0:00:03]}  Kg7 {[%clk 0:00:04]} 70. Qh5 {[%clk 0:00:03]}  Qxh5 {[%clk 0:00:04]} 71. gxh5 {[%clk 0:00:04]}  Rxa4 {[%clk 0:00:04]} 72. Ke3 {[%clk 0:00:05]}  Rb4 {[%clk 0:00:04]} 73. Bb5 {[%clk 0:00:02]}  Rxb5 {[%clk 0:00:04]} 0-1


[Site "https://www.chess.com"]

[Event "Titled Tuesday Blitz July 11 Early 2023"]
[White "Svane, Rasmus"]
[Black "Streltsov, Alexey"]
[WhiteFideId "4657101"]
[BlackFideId "24104434"]
[WhiteElo "2949"]
[BlackElo "2580"]
[Result "1-0"]
[Round "4"]
[TimeControl "180+2"]
[Date "2023.07.11"]
[WhiteClock "0:02:33"]
[BlackClock "0:01:15"]
[Board "37"]

1. Nf3 {[%clk 0:02:58]}  d5 {[%clk 0:03:00]} 2. g3 {[%clk 0:02:58]}  Nc6 {[%clk 0:03:00]} 3. d4 {[%clk 0:02:57]}  Bf5 {[%clk 0:03:00]} 4. Bg2 {[%clk 0:02:58]}  Nb4 {[%clk 0:03:00]} 5. Na3 {[%clk 0:02:58]}  e6 {[%clk 0:03:00]} 6. O-O {[%clk 0:02:58]}  Nf6 {[%clk 0:03:01]} 7. c3 {[%clk 0:02:58]}  Nc6 {[%clk 0:03:01]} 8. Qb3 {[%clk 0:02:55]}  Rb8 {[%clk 0:02:32]} 9. Bg5 {[%clk 0:02:53]}  Be7 {[%clk 0:02:33]} 10. Bxf6 {[%clk 0:02:53]}  Bxf6 {[%clk 0:02:31]} 11. Nd2 {[%clk 0:02:53]}  O-O {[%clk 0:02:14]} 12. e4 {[%clk 0:02:53]}  dxe4 {[%clk 0:02:11]} 13. Nxe4 {[%clk 0:02:54]}  Bxe4 {[%clk 0:01:58]} 14. Bxe4 {[%clk 0:02:54]}  Ne7 {[%clk 0:01:53]} 15. Nc4 {[%clk 0:02:41]}  b6 {[%clk 0:01:46]} 16. a4 {[%clk 0:02:41]}  c5 {[%clk 0:01:44]} 17. dxc5 {[%clk 0:02:40]}  bxc5 {[%clk 0:01:43]} 18. Qc2 {[%clk 0:02:40]}  Qc7 {[%clk 0:01:36]} 19. Bxh7+ {[%clk 0:02:39]}  Kh8 {[%clk 0:01:35]} 20. Be4 {[%clk 0:02:40]}  Nd5 {[%clk 0:01:35]} 21. Qd1 {[%clk 0:02:34]}  g6 {[%clk 0:01:33]} 22. Bxd5 {[%clk 0:02:33]}  Rfd8 {[%clk 0:01:15]} 23. Qf3 {[%clk 0:02:33]} 1-0


[Site "https://www.chess.com"]

[Event "Titled Tuesday Blitz July 11 Early 2023"]
[White "Gontcharov, Vladislav"]
[Black "Tahbaz, Arash"]
[WhiteFideId "4123492"]
[BlackFideId "12528846"]
[WhiteElo "2577"]
[BlackElo "2945"]
[Result "1-0"]
[Round "4"]
[TimeControl "180+2"]
[Date "2023.07.11"]
[WhiteClock "0:00:14"]
[BlackClock "0:00:03"]
[Board "38"]

1. d4 {[%clk 0:03:00]}  Nf6 {[%clk 0:03:00]} 2. c4 {[%clk 0:02:49]}  g6 {[%clk 0:02:58]} 3. Nc3 {[%clk 0:02:49]}  Bg7 {[%clk 0:02:59]} 4. Nf3 {[%clk 0:02:47]}  O-O {[%clk 0:02:59]} 5. Bg5 {[%clk 0:02:46]}  c5 {[%clk 0:02:53]} 6. d5 {[%clk 0:02:45]}  h6 {[%clk 0:02:52]} 7. Bf4 {[%clk 0:02:37]}  d6 {[%clk 0:02:52]} 8. h3 {[%clk 0:02:34]}  Re8 {[%clk 0:02:40]} 9. e3 {[%clk 0:02:32]}  Na6 {[%clk 0:02:24]} 10. Be2 {[%clk 0:02:30]}  Nc7 {[%clk 0:02:25]} 11. O-O {[%clk 0:02:27]}  a6 {[%clk 0:02:25]} 12. a4 {[%clk 0:02:27]}  Bd7 {[%clk 0:02:26]} 13. a5 {[%clk 0:02:26]}  Rb8 {[%clk 0:02:26]} 14. Nd2 {[%clk 0:02:13]}  b5 {[%clk 0:02:24]} 15. axb6 {[%clk 0:02:11]}  Rxb6 {[%clk 0:02:25]} 16. Ra2 {[%clk 0:02:05]}  Qb8 {[%clk 0:02:25]} 17. Qc2 {[%clk 0:02:02]}  Qb7 {[%clk 0:02:18]} 18. e4 {[%clk 0:01:57]}  Rb8 {[%clk 0:02:15]} 19. b3 {[%clk 0:01:56]}  e5 {[%clk 0:02:11]} 20. Be3 {[%clk 0:01:51]}  Re8 {[%clk 0:01:40]} 21. Na4 {[%clk 0:01:42]}  Rb4 {[%clk 0:01:38]} 22. Nb2 {[%clk 0:01:42]}  Bc8 {[%clk 0:01:20]} 23. Nd3 {[%clk 0:01:39]}  Rb6 {[%clk 0:01:20]} 24. Rb1 {[%clk 0:01:36]}  Nxe4 {[%clk 0:01:00]} 25. Nxe4 {[%clk 0:01:33]}  f5 {[%clk 0:01:00]} 26. Nexc5 {[%clk 0:01:29]}  dxc5 {[%clk 0:00:59]} 27. Bxc5 {[%clk 0:01:29]}  e4 {[%clk 0:00:56]} 28. Nf4 {[%clk 0:01:12]}  Be5 {[%clk 0:00:52]} 29. Bxb6 {[%clk 0:01:07]}  Qxb6 {[%clk 0:00:53]} 30. Ne6 {[%clk 0:01:06]}  Bxe6 {[%clk 0:00:52]} 31. dxe6 {[%clk 0:01:05]}  Nxe6 {[%clk 0:00:52]} 32. c5 {[%clk 0:01:05]}  Nxc5 {[%clk 0:00:49]} 33. b4 {[%clk 0:00:58]}  Rb8 {[%clk 0:00:34]} 34. Rc1 {[%clk 0:00:51]}  Nd7 {[%clk 0:00:17]} 35. Rxa6 {[%clk 0:00:50]}  Qxb4 {[%clk 0:00:17]} 36. Rxg6+ {[%clk 0:00:45]}  Kh7 {[%clk 0:00:17]} 37. Qc6 {[%clk 0:00:40]}  Rb6 {[%clk 0:00:09]} 38. Rxh6+ {[%clk 0:00:37]}  Kg7 {[%clk 0:00:09]} 39. Qxd7+ {[%clk 0:00:27]}  Kxh6 {[%clk 0:00:09]} 40. Qxf5 {[%clk 0:00:27]}  Qd2 {[%clk 0:00:09]} 41. Qh5+ {[%clk 0:00:21]}  Kg7 {[%clk 0:00:09]} 42. Qxe5+ {[%clk 0:00:19]}  Kh6 {[%clk 0:00:08]} 43. Qh5+ {[%clk 0:00:18]}  Kg7 {[%clk 0:00:09]} 44. Rc7+ {[%clk 0:00:17]}  Kf6 {[%clk 0:00:09]} 45. Qh4+ {[%clk 0:00:15]}  Ke5 {[%clk 0:00:05]} 46. Re7+ {[%clk 0:00:15]}  Kd6 {[%clk 0:00:05]} 47. Qf6+ {[%clk 0:00:15]}  Kc5 {[%clk 0:00:06]} 48. Rc7+ {[%clk 0:00:14]}  Kb4 {[%clk 0:00:03]} 49. Qxb6+ {[%clk 0:00:14]} 1-0


[Site "https://www.chess.com"]

[Event "Titled Tuesday Blitz July 11 Early 2023"]
[White "Makarian, Rudik"]
[Black "ArtemDyachuk"]
[WhiteFideId "44105681"]
[WhiteElo "2938"]
[BlackElo "2576"]
[Result "1-0"]
[Round "4"]
[TimeControl "180+2"]
[Date "2023.07.11"]
[WhiteClock "0:00:34"]
[BlackClock "0:00:00"]
[Board "39"]

1. d4 {[%clk 0:03:00]}  Nf6 {[%clk 0:02:59]} 2. c4 {[%clk 0:03:01]}  e6 {[%clk 0:02:59]} 3. Nf3 {[%clk 0:03:02]}  c5 {[%clk 0:02:59]} 4. Nc3 {[%clk 0:03:02]}  cxd4 {[%clk 0:02:54]} 5. Nxd4 {[%clk 0:03:03]}  Nc6 {[%clk 0:02:54]} 6. g3 {[%clk 0:03:03]}  Bc5 {[%clk 0:02:52]} 7. Nb3 {[%clk 0:03:03]}  Bb6 {[%clk 0:02:50]} 8. Bg2 {[%clk 0:03:03]}  O-O {[%clk 0:02:44]} 9. O-O {[%clk 0:03:03]}  d6 {[%clk 0:02:41]} 10. Bf4 {[%clk 0:02:53]}  Bc7 {[%clk 0:02:38]} 11. Qd2 {[%clk 0:02:49]}  Ne5 {[%clk 0:02:23]} 12. Nb5 {[%clk 0:02:35]}  Bb8 {[%clk 0:01:57]} 13. Bxe5 {[%clk 0:02:19]}  dxe5 {[%clk 0:01:56]} 14. Qxd8 {[%clk 0:02:19]}  Rxd8 {[%clk 0:01:56]} 15. Rfd1 {[%clk 0:02:20]}  Re8 {[%clk 0:01:10]} 16. Nc5 {[%clk 0:02:18]}  a6 {[%clk 0:01:09]} 17. Nd6 {[%clk 0:02:18]}  Bxd6 {[%clk 0:01:08]} 18. Rxd6 {[%clk 0:02:19]}  Ra7 {[%clk 0:01:00]} 19. Rad1 {[%clk 0:02:15]}  Kf8 {[%clk 0:00:57]} 20. Rb6 {[%clk 0:02:13]}  Ke7 {[%clk 0:00:45]} 21. b4 {[%clk 0:01:58]}  Nd7 {[%clk 0:00:39]} 22. Nxd7 {[%clk 0:01:52]}  Bxd7 {[%clk 0:00:39]} 23. c5 {[%clk 0:01:45]}  a5 {[%clk 0:00:27]} 24. bxa5 {[%clk 0:01:21]}  Rc8 {[%clk 0:00:24]} 25. Bxb7 {[%clk 0:01:10]}  Rxc5 {[%clk 0:00:23]} 26. a6 {[%clk 0:01:11]}  Rc2 {[%clk 0:00:18]} 27. e3 {[%clk 0:00:52]}  Rxa2 {[%clk 0:00:16]} 28. Kg2 {[%clk 0:00:52]}  h5 {[%clk 0:00:12]} 29. h4 {[%clk 0:00:52]}  Ra5 {[%clk 0:00:09]} 30. Rdb1 {[%clk 0:00:45]}  Rc5 {[%clk 0:00:06]} 31. Bf3 {[%clk 0:00:40]}  Ra5 {[%clk 0:00:04]} 32. Bb7 {[%clk 0:00:37]}  Rc5 {[%clk 0:00:03]} 33. Ra1 {[%clk 0:00:37]}  f5 {[%clk 0:00:02]} 34. Bf3 {[%clk 0:00:33]}  e4 {[%clk 0:00:00]} 35. Bxh5 {[%clk 0:00:34]} 1-0


[Site "https://www.chess.com"]

[Event "Titled Tuesday Blitz July 11 Early 2023"]
[White "Girya, Olga"]
[Black "Pranav, V"]
[WhiteFideId "4195752"]
[BlackFideId "25060783"]
[WhiteElo "2576"]
[BlackElo "2938"]
[Result "0-1"]
[Round "4"]
[TimeControl "180+2"]
[Date "2023.07.11"]
[WhiteClock "0:00:02"]
[BlackClock "0:00:37"]
[Board "40"]

1. d4 {[%clk 0:03:00]}  Nf6 {[%clk 0:02:59]} 2. Nf3 {[%clk 0:03:01]}  e6 {[%clk 0:02:59]} 3. c4 {[%clk 0:03:01]}  d5 {[%clk 0:02:59]} 4. Nc3 {[%clk 0:03:01]}  Be7 {[%clk 0:03:00]} 5. Bf4 {[%clk 0:03:01]}  O-O {[%clk 0:03:00]} 6. e3 {[%clk 0:03:01]}  b6 {[%clk 0:03:00]} 7. Bd3 {[%clk 0:02:54]}  Bb7 {[%clk 0:03:00]} 8. O-O {[%clk 0:02:54]}  Nbd7 {[%clk 0:03:00]} 9. cxd5 {[%clk 0:02:53]}  exd5 {[%clk 0:03:00]} 10. Rc1 {[%clk 0:02:48]}  a6 {[%clk 0:02:59]} 11. Ne5 {[%clk 0:02:31]}  Bd6 {[%clk 0:02:52]} 12. Nxd7 {[%clk 0:02:25]}  Qxd7 {[%clk 0:02:53]} 13. Qf3 {[%clk 0:02:10]}  Rae8 {[%clk 0:02:42]} 14. Bxd6 {[%clk 0:02:01]}  Qxd6 {[%clk 0:02:43]} 15. Qg3 {[%clk 0:02:02]}  Qd8 {[%clk 0:02:40]} 16. Ne2 {[%clk 0:01:58]}  c6 {[%clk 0:02:37]} 17. Nf4 {[%clk 0:01:55]}  g6 {[%clk 0:02:35]} 18. Qf3 {[%clk 0:01:43]}  Qd6 {[%clk 0:02:34]} 19. h3 {[%clk 0:01:43]}  Re7 {[%clk 0:02:33]} 20. a3 {[%clk 0:01:38]}  a5 {[%clk 0:02:33]} 21. Rc2 {[%clk 0:01:34]}  Kg7 {[%clk 0:02:28]} 22. Rfc1 {[%clk 0:01:33]}  Rfe8 {[%clk 0:02:26]} 23. Qe2 {[%clk 0:01:28]}  b5 {[%clk 0:02:11]} 24. Qf3 {[%clk 0:01:22]}  a4 {[%clk 0:01:55]} 25. Rc3 {[%clk 0:00:59]}  Qd8 {[%clk 0:01:40]} 26. Bb1 {[%clk 0:00:58]}  Rc7 {[%clk 0:01:37]} 27. Nd3 {[%clk 0:00:52]}  Ne4 {[%clk 0:01:36]} 28. R3c2 {[%clk 0:00:52]}  Re6 {[%clk 0:01:22]} 29. Nc5 {[%clk 0:00:41]}  Rf6 {[%clk 0:01:21]} 30. Qd1 {[%clk 0:00:39]}  Nd6 {[%clk 0:01:20]} 31. Rc3 {[%clk 0:00:38]}  Bc8 {[%clk 0:01:16]} 32. Bd3 {[%clk 0:00:32]}  h5 {[%clk 0:01:07]} 33. e4 {[%clk 0:00:17]}  Nc4 {[%clk 0:00:48]} 34. Bxc4 {[%clk 0:00:13]}  dxc4 {[%clk 0:00:49]} 35. Re3 {[%clk 0:00:09]}  Rd6 {[%clk 0:00:48]} 36. Qf3 {[%clk 0:00:07]}  Rxd4 {[%clk 0:00:48]} 37. e5 {[%clk 0:00:07]}  Rd5 {[%clk 0:00:45]} 38. e6 {[%clk 0:00:06]}  Rxc5 {[%clk 0:00:42]} 39. Qf4 {[%clk 0:00:05]}  Bxe6 {[%clk 0:00:39]} 40. Rce1 {[%clk 0:00:04]}  Rf5 {[%clk 0:00:39]} 41. Qe4 {[%clk 0:00:02]}  Qf6 {[%clk 0:00:37]} 0-1


[Site "https://www.chess.com"]

[Event "Titled Tuesday Blitz July 11 Early 2023"]
[White "Prestia, Paris"]
[Black "Chigaev, Maksim"]
[WhiteFideId "30925959"]
[BlackFideId "4108116"]
[WhiteElo "2575"]
[BlackElo "2926"]
[Result "0-1"]
[Round "4"]
[TimeControl "180+2"]
[Date "2023.07.11"]
[WhiteClock "0:00:12"]
[BlackClock "0:00:10"]
[Board "41"]

1. d4 {[%clk 0:03:00]}  Nf6 {[%clk 0:02:57]} 2. Bg5 {[%clk 0:03:01]}  g6 {[%clk 0:02:56]} 3. Bxf6 {[%clk 0:03:00]}  exf6 {[%clk 0:02:57]} 4. e3 {[%clk 0:03:01]}  d5 {[%clk 0:02:58]} 5. g3 {[%clk 0:03:01]}  c6 {[%clk 0:02:57]} 6. Bg2 {[%clk 0:03:02]}  h5 {[%clk 0:02:57]} 7. h4 {[%clk 0:03:02]}  Bg4 {[%clk 0:02:58]} 8. Ne2 {[%clk 0:03:02]}  Bd6 {[%clk 0:02:58]} 9. Nd2 {[%clk 0:03:01]}  Nd7 {[%clk 0:02:57]} 10. O-O {[%clk 0:03:00]}  O-O {[%clk 0:02:51]} 11. c4 {[%clk 0:03:00]}  dxc4 {[%clk 0:02:51]} 12. Nxc4 {[%clk 0:03:01]}  Nb6 {[%clk 0:02:52]} 13. Nxd6 {[%clk 0:03:00]}  Qxd6 {[%clk 0:02:52]} 14. Qc2 {[%clk 0:02:59]}  Bxe2 {[%clk 0:02:46]} 15. Qxe2 {[%clk 0:03:00]}  f5 {[%clk 0:02:47]} 16. Rac1 {[%clk 0:02:59]}  Rfe8 {[%clk 0:02:47]} 17. Rfd1 {[%clk 0:02:56]}  f4 {[%clk 0:02:41]} 18. gxf4 {[%clk 0:02:43]}  Qxf4 {[%clk 0:02:40]} 19. Qxh5 {[%clk 0:02:03]}  Rxe3 {[%clk 0:02:39]} 20. Qg5 {[%clk 0:02:03]}  Qxg5 {[%clk 0:02:32]} 21. hxg5 {[%clk 0:02:03]}  Re2 {[%clk 0:02:32]} 22. d5 {[%clk 0:02:04]}  cxd5 {[%clk 0:02:27]} 23. Bxd5 {[%clk 0:02:05]}  Rxb2 {[%clk 0:01:54]} 24. Rc7 {[%clk 0:02:03]}  Nxd5 {[%clk 0:01:51]} 25. Rxd5 {[%clk 0:02:04]}  Rxa2 {[%clk 0:01:44]} 26. Rdd7 {[%clk 0:02:03]}  Rf8 {[%clk 0:01:43]} 27. Rxb7 {[%clk 0:02:04]}  Ra5 {[%clk 0:01:43]} 28. f4 {[%clk 0:02:03]}  Ra4 {[%clk 0:01:38]} 29. f5 {[%clk 0:01:45]}  gxf5 {[%clk 0:01:30]} 30. Rxa7 {[%clk 0:01:44]}  Rg4+ {[%clk 0:01:11]} 31. Kf2 {[%clk 0:01:43]}  Rxg5 {[%clk 0:01:12]} 32. Ra1 {[%clk 0:01:41]}  Kg7 {[%clk 0:01:11]} 33. Rg1 {[%clk 0:01:28]}  Rg6 {[%clk 0:00:56]} 34. Rxg6+ {[%clk 0:01:18]}  Kxg6 {[%clk 0:00:56]} 35. Kf3 {[%clk 0:01:18]}  Ra8 {[%clk 0:00:56]} 36. Rd1 {[%clk 0:01:13]}  Kf6 {[%clk 0:00:54]} 37. Kf4 {[%clk 0:01:12]}  Ra4+ {[%clk 0:00:54]} 38. Kf3 {[%clk 0:01:13]}  Kg5 {[%clk 0:00:52]} 39. Rg1+ {[%clk 0:01:13]}  Rg4 {[%clk 0:00:52]} 40. Ra1 {[%clk 0:01:11]}  Rf4+ {[%clk 0:00:42]} 41. Kg3 {[%clk 0:01:10]}  Rb4 {[%clk 0:00:40]} 42. Ra3 {[%clk 0:01:03]}  Rh4 {[%clk 0:00:36]} 43. Ra5 {[%clk 0:00:59]}  f6 {[%clk 0:00:26]} 44. Ra8 {[%clk 0:00:56]}  f4+ {[%clk 0:00:24]} 45. Kf3 {[%clk 0:00:55]}  Rh3+ {[%clk 0:00:23]} 46. Kf2 {[%clk 0:00:56]}  Kf5 {[%clk 0:00:21]} 47. Rb8 {[%clk 0:00:47]}  Re3 {[%clk 0:00:21]} 48. Rc8 {[%clk 0:00:47]}  Rd3 {[%clk 0:00:21]} 49. Rb8 {[%clk 0:00:47]}  Rd5 {[%clk 0:00:18]} 50. Kf3 {[%clk 0:00:45]}  Re5 {[%clk 0:00:18]} 51. Rc8 {[%clk 0:00:44]}  Re3+ {[%clk 0:00:18]} 52. Kf2 {[%clk 0:00:45]}  Rh3 {[%clk 0:00:17]} 53. Kg2 {[%clk 0:00:42]}  Ra3 {[%clk 0:00:14]} 54. Kf2 {[%clk 0:00:43]}  Ra1 {[%clk 0:00:11]} 55. Rb8 {[%clk 0:00:42]}  Ra2+ {[%clk 0:00:10]} 56. Kf3 {[%clk 0:00:42]}  Ra5 {[%clk 0:00:11]} 57. Rc8 {[%clk 0:00:42]}  Re5 {[%clk 0:00:11]} 58. Rb8 {[%clk 0:00:42]}  Re3+ {[%clk 0:00:11]} 59. Kf2 {[%clk 0:00:42]}  Rg3 {[%clk 0:00:09]} 60. Re8 {[%clk 0:00:42]}  Rh3 {[%clk 0:00:06]} 61. Kg2 {[%clk 0:00:40]}  Re3 {[%clk 0:00:05]} 62. Ra8 {[%clk 0:00:36]}  f3+ {[%clk 0:00:05]} 63. Kf2 {[%clk 0:00:35]}  Kf4 {[%clk 0:00:06]} 64. Rf8 {[%clk 0:00:31]}  Re2+ {[%clk 0:00:05]} 65. Kf1 {[%clk 0:00:31]}  f5 {[%clk 0:00:06]} 66. Ra8 {[%clk 0:00:30]}  Rb2 {[%clk 0:00:06]} 67. Rc8 {[%clk 0:00:28]}  Rd2 {[%clk 0:00:05]} 68. Rb8 {[%clk 0:00:28]}  Rd4 {[%clk 0:00:06]} 69. Rc8 {[%clk 0:00:29]}  Ke3 {[%clk 0:00:06]} 70. Re8+ {[%clk 0:00:26]}  Re4 {[%clk 0:00:06]} 71. Ra8 {[%clk 0:00:26]}  Kf4 {[%clk 0:00:06]} 72. Kf2 {[%clk 0:00:26]}  Re2+ {[%clk 0:00:06]} 73. Kf1 {[%clk 0:00:26]}  Rh2 {[%clk 0:00:06]} 74. Kg1 {[%clk 0:00:25]}  Rb2 {[%clk 0:00:06]} 75. Kf1 {[%clk 0:00:25]}  Rc2 {[%clk 0:00:06]} 76. Rd8 {[%clk 0:00:24]}  Kg5 {[%clk 0:00:05]} 77. Rg8+ {[%clk 0:00:24]}  Kf4 {[%clk 0:00:05]} 78. Rd8 {[%clk 0:00:24]}  Rc4 {[%clk 0:00:05]} 79. Re8 {[%clk 0:00:24]}  Kg3 {[%clk 0:00:05]} 80. Rg8+ {[%clk 0:00:24]}  Rg4 {[%clk 0:00:05]} 81. Rf8 {[%clk 0:00:23]}  f4 {[%clk 0:00:04]} 82. Rh8 {[%clk 0:00:20]}  f2 {[%clk 0:00:04]} 83. Ra8 {[%clk 0:00:18]}  Rh4 {[%clk 0:00:03]} 84. Rg8+ {[%clk 0:00:18]}  Kf3 {[%clk 0:00:03]} 85. Rh8 {[%clk 0:00:04]}  Rg4 {[%clk 0:00:02]} 86. Rh3+ {[%clk 0:00:04]}  Rg3 {[%clk 0:00:02]} 87. Rh1 {[%clk 0:00:02]}  Rg1+ {[%clk 0:00:03]} 88. Rxg1 {[%clk 0:00:02]}  fxg1=Q+ {[%clk 0:00:04]} 89. Kxg1 {[%clk 0:00:03]}  Ke2 {[%clk 0:00:05]} 90. Kg2 {[%clk 0:00:04]}  f3+ {[%clk 0:00:05]} 91. Kg3 {[%clk 0:00:05]}  f2 {[%clk 0:00:06]} 92. Kg4 {[%clk 0:00:06]}  f1=Q {[%clk 0:00:07]} 93. Kg5 {[%clk 0:00:07]}  Qf7 {[%clk 0:00:07]} 94. Kg4 {[%clk 0:00:07]}  Qf6 {[%clk 0:00:07]} 95. Kg3 {[%clk 0:00:08]}  Qf5 {[%clk 0:00:08]} 96. Kg2 {[%clk 0:00:09]}  Qf4 {[%clk 0:00:09]} 97. Kg1 {[%clk 0:00:10]}  Qf3 {[%clk 0:00:08]} 98. Kh2 {[%clk 0:00:10]}  Qg4 {[%clk 0:00:09]} 99. Kh1 {[%clk 0:00:11]}  Kf2 {[%clk 0:00:10]} 100. Kh2 {[%clk 0:00:12]}  Qh4# {[%clk 0:00:10]} 0-1


[Site "https://www.chess.com"]